Cogmind - Beta 13 @@@ ROGUE MODE // 2024.04.08 @ 15:02:41 Player: Lunace Result: Destroyed by as-45681 with Assembled F-torch Performance ------------- Evolutions (0) 0 Regions Visited (2) 400 Robots Destroyed (20) 100 Value Destroyed (383) 383 Prototype IDs (2) 40 Alien Tech Used (0) 0 Bonus (0) 0 TOTAL SCORE: 923 Bonus ------- None Cogmind --------- Core Integrity 0/250 Matter 285/300 Energy 76/100 System Corruption 3% Temperature Cool (62) Movement Treading (160) Location -10/Mines Parts ------- > --- POWER (1) -------- (None) > --- PROPULSION (2) --- Light Treads Light Treads > --- UTILITY (2) ------ Large Storage Unit Structural Scanner > --- WEAPON (2) ------- Small Laser > --- INVENTORY (15) --- Light Ion Engine Flight Unit Flight Unit Flight Unit Flight Unit Heat Sink Small Matter Pod (50) Medium Matter Pod (100) Hardened Light Armor Plating Hardened Light Armor Plating Small Laser Small Laser Mining Laser Peak State ------------ > --- POWER ------------ Light Nuclear Core > --- PROPULSION ------- Light Treads Light Treads > --- UTILITY ---------- Large Storage Unit Improved Terrain Scanner > --- WEAPON ----------- Small Laser Small Laser > --- INVENTORY -------- Light Ion Engine Light Treads Flight Unit Flight Unit Flight Unit Small Matter Pod Terrain Scan Processor Small Laser Mining Laser [Rating: 12] Favorites ----------- Power Light Nuclear Core Engine Light Ion Engine Power Core Light Nuclear Core Propulsion Light Treads Treads Light Treads Utility Large Storage Unit Device Improved Terrain Scanner Storage Large Storage Unit Weapon Small Laser Energy Gun Small Laser Ballistic Gun Light Assault Rifle Build | -11 -10 -10 ------- Run | Yrd Mat Min Slots Evolved . | . . . Power . | . . . Propulsion . | . . . Utility . | . . . Weapon . | . . . Parts Attached 19 | 8 9 2 Power 3 | 1 2 . Engine 1 | 1 . . Core 2 | . 2 . Reactor . | . . . Propulsion 4 | 2 . 2 Treads 4 | 2 . 2 Leg . | . . . Wheel . | . . . Hover . | . . . Flight . | . . . Utility 6 | 4 2 . Device 4 | 3 1 . Storage 2 | 1 1 . Processor . | . . . Hackware . | . . . Protection . | . . . Artifact . | . . . Weapon 6 | 1 5 . Energy Gun 5 | . 5 . Energy Cannon . | . . . Ballistic Gun 1 | 1 . . Ballistic Cannon . | . . . Launcher . | . . . Special Weapon . | . . . Impact Weapon . | . . . Slashing Weapon . | . . . Piercing Weapon . | . . . Special Melee Weapon . | . . . Unidentified Prototypes . | . . . Parts Lost 3 | . . 3 Power . | . . . Propulsion 2 | . . 2 Utility . | . . . Weapon 1 | . . 1 Highest Loss Streak 3 | . . 3 To Critical Strikes . | . . . Average Slot Usage (%) 97 | . 98 85 Engine 1 | . 1 . Core 11 | . 12 8 Treads 27 | . 28 25 Device 14 | . 14 14 Storage 14 | . 14 14 Energy Gun 24 | . 25 22 Ballistic Gun 1 | . 1 . Naked Turns . | . . . Heaviest Build 28 | 10 28 28 Greatest Support 40 | 40 40 40 Greatest Overweight (x) 1 | . . 1 Average Overweight (x) . | . . . Largest Inventory Capacity 15 | 8 15 15 Average Capacity 12 | 7 13 15 Most Carried 15 | 5 15 15 Average Carried 10 | 3 11 14 Final Capacity 15 | 8 15 15 Final Carried 15 | 5 15 13 Class Distribution -------------------- 100% | Mutant Dominant Class ---------------- Mutant | -10/Materials Mutant | -10/Mines Resources | -11 -10 -10 ----------- Run | Yrd Mat Min Matter Collected 619 | 259 360 . Remotely . | . . . Salvage Created 595 | 68 527 . Parts 46 | 9 37 . Haulers Intercepted 1 | . 1 . Recyclers Shooed 1 | . 1 . Parts Field Recycled . | . . . Retrieved Matter . | . . . Parts Self-Destructed . | . . . Prevented . | . . . Kills | -11 -10 -10 ------- Run | Yrd Mat Min Combat Hostiles Destroyed 11 | . 11 . Guns 10 | . 10 . Classes Destroyed 7 | 1 6 . Builder 1 | . 1 . Tunneler 3 | 3 . . Hauler 1 | . 1 . Recycler 1 | . 1 . Watcher 3 | . 3 . Swarmer 4 | . 4 . Grunt 7 | . 7 . Best Kill Streak 5 | 1 5 . Combat Bots Only 3 | . 3 . Max Kills in Single Turn 2 | 1 2 . Gunslinging . | . . . Exploded . | . . . Melee . | . . . Uniques/NPCs Destroyed . | . . . Combat | -11 -10 -10 -------- Run | Yrd Mat Min Hostile Shots Fired 80 | . 57 23 Missed 20 | . 14 6 Damage Taken 873 | . 524 349 Core 253 | . 134 119 Absorbed by Shields . | . . . Regen/Repaired (Parts) 72 | . 72 . Core Remaining (%) 100 | 100 . . Volleys Fired 82 | 27 54 1 Largest 2 | 1 2 2 Hottest 80 | 20 80 80 Shots Fired 137 | 27 108 2 Gun 137 | 27 108 2 Cannon . | . . . Launcher . | . . . Special . | . . . Kinetic 41 | 27 14 . Thermal 82 | . 80 2 Explosive . | . . . Electromagnetic 14 | . 14 . Robot Hit Streak 9 | 4 9 . Robot Miss Streak 5 | 5 4 2 Penetration Max . | . . . Secondary Targets 1 | . 1 . Max Gunslinging Chain 1 | . 1 . Shots Hit Robots 77 | 14 63 . Core Hits 33 | 5 28 . Critical Kills . | . . . Critical Parts Destroyed . | . . . Critical Strikes . | . . . Melee Attacks . | . . . Impact . | . . . Slashing . | . . . Piercing . | . . . Sneak Attacks . | . . . Combat Hostiles . | . . . Follow-up Attacks . | . . . Damage Inflicted 912 | 136 776 . Guns 879 | 135 744 . Cannons . | . . . Explosions 32 | . 32 . Melee . | . . . Ramming 1 | 1 . . Kinetic 199 | 135 64 . Thermal 612 | . 612 . Explosive . | . . . Electromagnetic 100 | . 100 . Impact . | . . . Slashing . | . . . Piercing . | . . . Highest Corruption 3 | . 3 3 Average Corruption 2 | . 2 3 Corruption Purged . | . . . Corruption Blocked . | . . . Effects 10 | . 8 2 Matter Fused 3 | . 2 1 Heat Flow Errors 2 | . 2 . Parts Rejected 1 | . . 1 Data Loss (minor) 2 | . 2 . Data Loss (major) 2 | . 2 . Overload Shots . | . . . Overflow Damage . | . . . Projectiles . | . . . Explosions . | . . . Melee . | . . . Knockbacks . | . . . Impact . | . . . Kinetic . | . . . Secondary . | . . . Self-Inflicted Damage . | . . . Shots . | . . . Rammed 1 | 1 . . Targets Rammed 1 | 1 . . Kicked . | . . . Crushed . | . . . Highest Temperature 300 | . 300 44 Average Temperature 90 | . 93 19 Received Heat Transfer 390 | . 210 180 Effects 3 | . 3 . Energy Bleed 1 | . 1 . Interference 2 | . 2 . Siege Activations . | . . . Robots Corrupted . | . . . Combat Hostiles . | . . . Parts Fried 1 | . 1 . Impact Corruptions . | . . . Robots Melted 1 | . 1 . Combat Hostiles 1 | . 1 . Parts Melted 2 | . 2 . Heat Transferred 1300 | . 1300 . Parts Sabotaged . | . . . Parts Stolen . | . . . Parts Stripped . | . . . Power Chain Reactions 1 | . 1 . Alert | -11 -10 -10 ------- Run | Yrd Mat Min Peak Influence 166 | 15 166 2 Initial 9 | . 9 2 Average 59 | 4 70 . Maximum Alert Level . | . . . Low Security (%) 100 | 100 100 100 Level 1 . | . . . Level 2 . | . . . Level 3 . | . . . Level 4 . | . . . Level 5 . | . . . High Security . | . . . Max Security . | . . . Squads Dispatched 2 | . 2 . Investigation 1 | . 1 . Extermination . | . . . Reinforcement 1 | . 1 . Assault . | . . . Garrison . | . . . Intercept . | . . . Searches Triggered . | . . . Construction Impeded . | . . . Haulers Reinforced . | . . . Active Scanning Responses . | . . . Cargo Convoy Interrupts . | . . . Stealth | -11 -10 -10 --------- Run | Yrd Mat Min Distress Signals 3 | . 3 . Communications Jammed . | . . . Distress Signals . | . . . Times Spotted 22 | . 18 4 Peak Tracking Total 4 | . 4 4 Tactical Retreats 1 | . 1 . Traps | -11 -10 -10 ------- Run | Yrd Mat Min Traps Triggered 5 | . 5 . Indirectly . | . . . Trap Hack Attempts . | . . . Triggered . | . . . Disarmed . | . . . Reprogrammed . | . . . Reused . | . . . Traps Extracted . | . . . Installed . | . . . Triggered . | . . . Machines | -11 -10 -10 ---------- Run | Yrd Mat Min Machines Disabled 1 | . 1 . Max in Single Turn 1 | . 1 . Machines Repaired . | . . . Machines Dismantled . | . . . Machines Sabotaged . | . . . Overloaded Fab Kills . | . . . Hacking | -11 -10 -10 --------- Run | Yrd Mat Min Machines Accessed 9 | . 9 . Terminals 7 | . 7 . Fabricators . | . . . Repair Stations 1 | . 1 . Recycling Units 1 | . 1 . Scanalyzers . | . . . Garrison Access . | . . . Total Hacks 24 | . 24 . Successful 16 | . 16 . Failed 8 | . 8 . Catastrophic . | . . . Database Lockouts . | . . . Manual 19 | . 19 . Terminals 18 | . 18 . Fabricators . | . . . Repair Stations 4 | . 4 . Recycling Units 2 | . 2 . Scanalyzers . | . . . Garrison Access . | . . . Terminal Hacks 4 | . 4 . Prototype ID Bank 1 | . 1 . Branch Access Points 1 | . 1 . Recall Investigation 1 | . 1 . Zone Layout 1 | . 1 . Fabricator Hacks . | . . . Repair Station Hacks 4 | . 4 . Scan Component 2 | . 2 . Repair 2 | . 2 . Recycling Unit Hacks 1 | . 1 . Report Inventory 1 | . 1 . Scanalyzer . | . . . Garrison Access Hacks . | . . . Unauthorized Hacks 6 | . 6 . Terminals 6 | . 6 . Botnet 6 | . 6 . Fabricators . | . . . Repair Stations . | . . . Recycling Units . | . . . Scanalyzers . | . . . Garrison Access . | . . . Data Cores Recovered . | . . . Used . | . . . Hacking Detections 6 | . 6 . Full Trace Events . | . . . Feedback Events . | . . . Feedback Blocked . | . . . Robot Schematics Acquired . | . . . Robots Built . | . . . Authchips . | . . . Time . | . . . Total Robot Build Rating . | . . . Part Schematics Acquired . | . . . Parts Built . | . . . Authchips . | . . . Time . | . . . Total Part Build Rating . | . . . Parts Repaired 2 | . 2 . Time 64 | . 64 . Parts Recycled . | . . . Recycled Matter . | . . . Retrieved Matter . | . . . Retrieved Components . | . . . Parts Scanalyzed . | . . . Part Schematics Acquired . | . . . Parts Damaged . | . . . Bothacking | -11 -10 -10 ------------ Run | Yrd Mat Min Used RIF Installer . | . . . Robots Hacked . | . . . Non-combat . | . . . Combat . | . . . Robot Hacks Applied . | . . . Relay Couplers Released . | . . . Fabnet Peak Effective % . | . . . Robots Rewired . | . . . Allies Hacked . | . . . Hacks Repelled . | . . . Allies | -11 -10 -10 -------- Run | Yrd Mat Min Total Allies . | . . . Largest Group . | . . . Highest-Rated Group . | . . . Highest-Rated Ally . | . . . Total Orders . | . . . Ally Attacks . | . . . Total Damage . | . . . Kills . | . . . Allies Corrupted . | . . . Allies Melted . | . . . Intel | -11 -10 -10 ------- Run | Yrd Mat Min Robot Analysis Total . | . . . Derelict Logs Recovered . | . . . Drone Launches . | . . . Drone Recoveries . | . . . Exploration | -11 -10 -10 ------------- Run | Yrd Mat Min Turns Passed 1579 | 225 1312 42 Spaces Moved 759 | 101 636 22 Core 2 | 2 . . Treads 757 | 99 636 22 Legs . | . . . Wheels . | . . . Hover . | . . . Flight . | . . . Fastest Speed 50 | 50 160 160 Average Speed 160 | 157 160 174 Slowest Speed 240 | 160 160 240 Overloaded Moves . | . . . Propulsion Burnouts . | . . . Robots Hopped . | . . . Cave-ins Triggered . | . . . Exploration Rate (%) 35 | 6 93 8 Regions Visited 2 Branch Regions 1 Pre-discovered Areas . | . . . Known Exits Taken 1 | . 1 . Unknown Exits Taken 1 | 1 . . Scrap Searched . | . . . Spaces Dug . | . . . Terrain Destroyed 3 | . 3 . Melee . | . . . Projectile . | . . . AOE 3 | . 3 . Terrain Rammed . | . . . Walls Destroyed . | . . . Machines Disabled . | . . . Actions | -11 -10 -10 --------- Run | Yrd Mat Min Total 997 | 141 831 25 Wait 102 | . 102 . Move 757 | 100 635 22 Hop . | . . . Pick Up 22 | 4 18 . Fast Attach 12 | 7 5 . Attach 3 | . 1 2 Detach . | . . . Swap 4 | 1 3 . Drop 14 | 1 13 . Fire 82 | 27 54 1 Melee . | . . . Ram . | . . . Kick . | . . . Crush 1 | 1 . . Escape Stasis . | . . . Rewire . | . . . Trap . | . . . Miscellaneous . | . . . Route ------- -11/Scrapyard -10/Materials (discovered 5 exits: [*Mat x3] / *Min x2) -10/Mines History --------- Turn | Location | Event 2 | -11/Scrapyard | Met Revision 17 12 | -11/Scrapyard | Discovered new exit (range 15) 226 | -11/Scrapyard | Entered Materials 323 | -10/Materials | Build established: Mutant 473 | -10/Materials | Discovered new exit (range 15) 584 | -10/Materials | Discovered new exit (range 7) 593 | -10/Materials | Identified exit to Mines 834 | -10/Materials | Discovered new exit (range 15) 1135 | -10/Materials | Repaired Lgt. Nuclear Core 1162 | -10/Materials | Repaired Sml. Laser 1210 | -10/Materials | Discovered new exit (range 15) 1323 | -10/Materials | Core integrity fell below 50% 1538 | -10/Materials | Entered Mines 1539 | -10/Mines | Assembled infested the area 1578 | -10/Mines | Core integrity fell below 20% 1580 | -10/Mines | Destroyed by as-45681 with Assembled F-torch Last Messages --------------- K-01 Serf collects debris. System corrupted: Substantial component data lost. Acquired 7 matter. K-01 Serf cleans the Processing Tank. System corrupted: Substantial component data lost. W-16 Scout destroyed. System corrupted: Heat flow error (+243). K-01 Serf collects debris. LOCATION=MINES GOAL=ESCAPE ALERT: Infestation in the mines, dispatching Demolisher response squad. System corrupted: Matter fused (-6). Lgt. Treads destroyed. Sml. Laser destroyed. System corrupted: Lgt. Nuclear Core rejected. Lgt. Treads destroyed. Critical hit (Burn: +80). Map ----- +----------------------------------------------------+ | ?????????????????????????????????? | | ?????????????????????????????????? | | ?????????????????????????????????? | | ?????????????????????????????????? | | ???## ???#### ??????????????????? | | ???## ######## ?????????????????? | | ???## ##### ### ????????????????? | | ???## ### ???????????????? | | ???## ####??????????????? | | ???## ####?????????????? | | ???### ####????????????? | | ????### ### ###????????????? | | ????######### ###???????????? | | ?????######## """ ####??????????? | | ????????#### """ ### ?????????? | | ??######### """ ## ?????????? | | ??######## # ?????????? | | ??## #### ##?????????? | | ??## * ###### ##?????????? | | ??## ## #####?### ##?????????? | | ??## ## a#####???## ?????????? | | ??## ?## ###???????? ?????????? | | ??????##aa##?????????###?????????? | | ??????## a##?????????###?????????? | | ??????## ##?????????????????????? | | ??????## @##?????????????????????? | | ??????## ???????????????????? | | ??????########???????????????????? | | ??????########???????????????????? | | ?????????????????????????????????? | | ?????????????????????????????????? | | ?????????????????????????????????? | | ?????????????????????????????????? | | ?????????????????????????????????? | | ?????????????????????????????????? | | ?????????????????????????????????? | | ?????????????????????????????????? | | ?????????????????????????????????? | | ?????????????????????????????????? | | ?????????????????????????????????? | | ?????????????????????????????????? | | ?????????????????????????????????? | | ?????????????????????????????????? | | ?????????????????????????????????? | | ?????????????????????????????????? | | ?????????????????????????????????? | | ?????????????????????????????????? | | ?????????????????????????????????? | | ?????????????????????????????????? | | ?????????????????????????????????? | +----------------------------------------------------+ Best States ------------- Heat Dissipation 25 Energy Generation 14 Energy Capacity 160 Matter Stores 300 Matter Capacity 300 Sight Range 16 Terrain Scan Range 16 Terrain Scan Density 10 Evasion (%) 40 Recoil Reduction 2 Item Schematics ----------------- None Robot Schematics ------------------ None Fabricated ------------ Nothing Alien Tech Used ----------------- None Achievements -------------- Quantum Hacking Challenges ------------ None Game ------ Seed ClaymoresGuidanceBay Manual? 0 Play Time 00:14:56 Cumulative 39.6 hours Start 2024.04.08 @ 14:14:40 End 2024.04.08 @ 15:02:41 Sessions 1 Manual Loads 0 Difficulty Rogue Special Mode None Game No. 42 Rogue 37 Adventurer 5 Explorer 0 Win Type - Total 1 Types 1/0/0/0/0/0/0/0/0 Lore% 20 Gallery% 38 Achievement% 30 Wizard Run 0 Options --------- Layout 1 ASCII 0 Keyboard 0 Movement Mouse Keybinds 0 Fullscreen 1 Font 24/Terminus Map View 50x35 Zoom Use 0% Tactical HUD 0 Map Filters NONE Filters NONE Steam 1 RUN: 3fc9c687-876a-4352-ad87-1e93e92f31d5